bitfinex-derivatives/quotes_BTCF0:USTF0_20250910
["timestamp","ask_amount","ask_price","bid_price","bid_amount"]
[1757507669983,0.3608,113390.0,113370.0,0.13144459]
[1757507669984,0.39028,113400.0,113370.0,0.61229]
[1757507670185,0.41177469,113400.0,113370.0,0.36229]
[1757507670386,0.02948,113400.0,113390.0,0.12995459]
[1757507670587,0.02948,113400.0,113380.0,0.12995459]
[1757507670588,0.39028,113400.0,113380.0,0.12995459]
[1757507671280,0.39028,113420.0,113390.0,0.3608]
[1757507671484,0.3608,113410.0,113400.0,0.12995459]
[1757507671684,0.38228632,113410.0,113400.0,0.12995459]
[1757507671887,0.02148632,113410.0,113400.0,0.49075459]
[1757507672188,0.02148632,113410.0,113400.0,0.3608]
[1757507672384,0.02148632,113410.0,113400.0,0.12995459]
[1757507672584,0.02148632,113410.0,113400.0,0.3608]
[1757507672789,0.02148632,113410.0,113400.0,0.12995459]
[1757507673088,0.02148632,113410.0,113400.0,0.49075459]
[1757507673277,0.02148632,113410.0,113400.0,0.3608]
[1757507673480,0.02148632,113410.0,113400.0,0.49075459]
[1757507673683,0.02948,113400.0,113370.0,0.49224459]
[1757507673880,0.3608,113390.0,113380.0,0.12995459]
[1757507674080,0.54172091,113400.0,113380.0,0.49075459]
[1757507674081,0.39028,113400.0,113380.0,0.49075459]
[1757507674285,0.39028,113400.0,113390.0,0.12995459]
[1757507674286,0.05150638,113400.0,113390.0,0.12995459]
[1757507674486,0.02202638,113400.0,113390.0,0.49075459]
[1757507675182,0.02202638,113400.0,113390.0,0.3608]
[1757507675498,0.05150462,113400.0,113390.0,0.49075459]
[1757507675782,0.05150462,113400.0,113380.0,0.3608]
[1757507675987,0.05150462,113400.0,113390.0,0.12995459]
[1757507676182,0.05150462,113400.0,113390.0,0.49075459]
[1757507676489,0.39028,113420.0,113390.0,0.87070918]
[1757507676693,0.05150387,113420.0,113410.0,0.49075459]
[1757507676987,0.05150387,113420.0,113410.0,0.12995459]
[1757507677175,0.05150387,113420.0,113410.0,0.49075459]
[1757507677383,0.02948,113410.0,113400.0,0.49075459]
[1757507677685,0.05150387,113410.0,113400.0,0.49075459]
[1757507678188,0.02202387,113410.0,113400.0,0.87070918]
[1757507678381,0.02987,113440.0,113400.0,0.95887688]
[1757507678687,0.02948,113430.0,113420.0,0.49075459]
[1757507678886,0.05151407,113430.0,113420.0,0.49075459]
[1757507679088,0.05151407,113430.0,113420.0,0.12995459]
[1757507679282,0.05151407,113430.0,113420.0,0.49075459]
[1757507680587,0.30151407,113430.0,113410.0,0.3608]
[1757507680890,0.05151407,113430.0,113410.0,0.3608]
[1757507681080,0.18146866,113430.0,113410.0,0.3608]
[1757507681286,0.3608,113420.0,113400.0,0.49075459]
[1757507681590,0.38283407,113420.0,113410.0,0.12995459]
[1757507681791,0.02203407,113420.0,113410.0,0.49075459]
[1757507682178,0.05151407,113430.0,113410.0,0.49075459]
[1757507682384,0.05151407,113430.0,113420.0,0.12995459]
[1757507682682,0.05151407,113430.0,113410.0,0.3608]
[1757507682981,0.3608,113420.0,113410.0,0.12995459]
[1757507683181,0.02203407,113420.0,113400.0,0.3608]
[1757507683388,0.02203407,113420.0,113410.0,0.12995459]
[1757507683583,0.54226866,113430.0,113410.0,0.12995459]
[1757507683779,0.41231407,113430.0,113410.0,0.12995459]
[1757507683987,0.02922,113420.0,113410.0,0.12995459]
[1757507684191,0.05125407,113420.0,113410.0,0.49075459]
[1757507684589,0.02203407,113420.0,113410.0,0.12995459]
[1757507684788,0.02922,113430.0,113410.0,0.82891389]
[1757507685096,0.05126682,113430.0,113420.0,0.49075459]
[1757507685479,0.05126682,113430.0,113420.0,0.3608]
[1757507685679,0.05126682,113430.0,113420.0,0.49075459]
[1757507686084,0.05126682,113430.0,113420.0,0.12995459]
[1757507687580,0.02922,113420.0,113410.0,0.3608]
[1757507687782,0.05127328,113420.0,113400.0,0.49075459]
[1757507687981,0.02922,113410.0,113400.0,0.3608]
[1757507688388,0.02922,113420.0,113400.0,0.62070918]
[1757507688588,0.05127922,113420.0,113410.0,0.12995459]
[1757507689090,0.05127922,113420.0,113410.0,0.49075459]
[1757507689293,0.05127922,113420.0,113410.0,0.3608]
[1757507689686,0.05127922,113420.0,113410.0,0.49075459]
[1757507690289,0.05127922,113420.0,113410.0,0.3608]
[1757507690489,0.05127922,113420.0,113410.0,0.49075459]
[1757507690892,0.05127922,113420.0,113410.0,0.12995459]
[1757507691091,0.30127922,113420.0,113400.0,0.3608]
[1757507691292,0.02922,113400.0,113390.0,0.49075459]
[1757507691489,0.02922,113400.0,113380.0,0.3608]
[1757507691692,0.02922,113400.0,113390.0,0.49075459]
[1757507691889,0.02922,113420.0,113400.0,0.0881656]
[1757507692084,0.05128049,113420.0,113410.0,0.12995459]
[1757507692491,0.02206049,113420.0,113410.0,0.3608]
[1757507692694,0.02206049,113420.0,113400.0,0.3608]
[1757507692695,0.05128049,113420.0,113400.0,0.3608]
[1757507692993,0.02922,113410.0,113400.0,0.49075459]
[1757507693194,0.05128049,113410.0,113400.0,0.49075459]
[1757507693792,0.39002,113420.0,113400.0,0.62070918]
[1757507693994,0.05128089,113420.0,113410.0,0.49075459]
[1757507694200,0.05128089,113420.0,113410.0,0.12995459]
[1757507694496,0.05128089,113420.0,113400.0,0.3608]
[1757507694691,0.05128089,113420.0,113410.0,0.12995459]
[1757507695292,0.05128089,113420.0,113410.0,0.49075459]
[1757507695892,0.05128089,113420.0,113400.0,0.49075459]
[1757507696084,0.05128089,113420.0,113410.0,0.12995459]
[1757507696291,0.05128089,113420.0,113410.0,0.49075459]
[1757507696989,0.05128089,113420.0,113400.0,0.3608]
[1757507697298,0.05128089,113420.0,113410.0,0.12995459]
[1757507697697,0.30128089,113420.0,113410.0,0.12995459]
[1757507697893,0.02922,113410.0,113400.0,0.3608]
[1757507698397,0.02922,113420.0,113400.0,0.62070918]
[1757507698598,0.05128225,113420.0,113410.0,0.12995459]
[1757507698796,0.05128225,113420.0,113410.0,0.49075459]
[1757507698986,0.05128225,113420.0,113410.0,0.12995459]
[1757507699191,0.05128225,113420.0,113400.0,0.49075459]
[1757507699192,0.02922,113410.0,113400.0,0.49075459]
[1757507700195,0.02922,113390.0,113380.0,0.3608]
[1757507700494,0.02922,113380.0,113370.0,0.36229]
[1757507700700,0.02922,113380.0,113370.0,0.62219918]
[1757507700993,0.02922,113380.0,113370.0,0.49224459]
[1757507701597,0.02922,113380.0,113370.0,0.36229]
[1757507701809,0.02922,113380.0,113370.0,0.49224459]
[1757507701989,0.02922,113380.0,113370.0,0.62219918]
[1757507702589,0.02922,113400.0,113370.0,0.96038698]
[1757507702795,0.02922,113410.0,113390.0,0.49075459]
[1757507702995,0.05128675,113410.0,113400.0,0.12995459]
[1757507703602,0.05128675,113410.0,113390.0,0.35922675]
[1757507703901,0.05128675,113410.0,113400.0,0.49075459]
[1757507704093,0.05128675,113410.0,113400.0,0.3608]
[1757507704291,0.02206675,113410.0,113400.0,0.3608]
[1757507704496,0.02922,113420.0,113400.0,0.70887738]
[1757507704696,0.0512551,113420.0,113410.0,0.3608]
[1757507704898,0.0512551,113420.0,113410.0,0.49075459]
[1757507705291,0.0220351,113420.0,113410.0,0.57891499]
[1757507705492,0.0220351,113420.0,113410.0,0.49075459]
[1757507705899,0.0220351,113420.0,113410.0,1.61903459]
[1757507706097,0.01,113430.0,113410.0,1.95719499]
[1757507706303,0.01,113430.0,113420.0,0.49075459]
[1757507706606,0.0320356,113430.0,113420.0,0.49075459]
[1757507706800,0.0320356,113430.0,113420.0,0.95886178]
[1757507707401,0.0320356,113430.0,113420.0,0.96754087]
[1757507707600,0.02922,113460.0,113440.0,0.0881311]
[1757507707803,0.02179414,113460.0,113450.0,0.49075459]
[1757507708207,0.02179414,113460.0,113450.0,1.61891459]
[1757507708607,0.02179414,113460.0,113450.0,1.61887459]
[1757507709014,0.02179414,113460.0,113450.0,1.70700409]
[1757507709209,0.02179414,113460.0,113450.0,1.70696409]
[1757507709704,0.02179414,113460.0,113450.0,2.08691868]
[1757507709906,0.04753643,113490.0,113480.0,0.25990918]
[1757507710109,0.04753643,113490.0,113480.0,1.74874918]
[1757507710406,0.12675643,113500.0,113480.0,1.61871459]
[1757507710605,0.12675643,113500.0,113490.0,0.12995459]
[1757507711000,0.09753643,113500.0,113490.0,0.12995459]
[1757507711304,0.09753643,113500.0,113490.0,0.25990918]
[1757507711610,0.05,113500.0,113490.0,1.74854918]
[1757507711808,0.05,113500.0,113490.0,1.83664758]
[1757507712512,0.05,113500.0,113490.0,1.74842918]
[1757507713011,0.05,113500.0,113490.0,1.74838918]
[1757507713212,0.05,113500.0,113490.0,1.83648758]
[1757507713512,0.05,113500.0,113490.0,0.62070918]
[1757507713699,0.05,113500.0,113490.0,1.74830918]
[1757507713899,0.05,113500.0,113490.0,0.62070918]
[1757507714112,0.05,113500.0,113490.0,1.74822918]
[1757507714912,0.05,113500.0,113490.0,0.62070918]
[1757507715113,0.05,113500.0,113490.0,1.83624768]
[1757507715412,0.05,113500.0,113490.0,0.95880768]
[1757507715612,0.05,113500.0,113490.0,2.08608768]
[1757507717212,0.05,113500.0,113490.0,0.95880768]
[1757507717608,0.05,113500.0,113490.0,2.08576768]
[1757507718511,0.05,113500.0,113490.0,1.83568768]
[1757507718710,0.00042,113540.0,113510.0,0.0880821]
[1757507718907,0.00042,113540.0,113530.0,0.85155459]
[1757507719109,0.00042,113540.0,113530.0,0.93962199]
[1757507719314,0.00042,113540.0,113530.0,1.06957658]
[1757507719519,0.00042,113540.0,113530.0,1.31957658]
[1757507719817,0.00042,113540.0,113530.0,2.31630199]
[1757507720211,0.00042,113540.0,113530.0,2.3251923]
[1757507720520,0.00042,113540.0,113530.0,2.2371249]
[1757507720715,0.00042,113540.0,113530.0,2.10717031]
[1757507721020,0.00042,113540.0,113530.0,2.31630199]
[1757507721415,0.00042,113540.0,113530.0,0.7216]
[1757507721622,0.25042,113540.0,113530.0,0.85155459]
[1757507721824,0.25042,113540.0,113530.0,1.97791459]
[1757507722122,0.00042,113540.0,113530.0,2.44593658]
[1757507722921,0.25042,113540.0,113530.0,0.7216]
[1757507723115,0.00042,113540.0,113530.0,2.06582199]
[1757507723317,0.00042,113540.0,113530.0,0.93962199]
[1757507723513,0.00042,113540.0,113530.0,1.97759459]
[1757507724118,0.00042,113540.0,113530.0,2.06558119]
[1757507724329,0.00042,113540.0,113530.0,2.44553578]
[1757507724618,0.00042,113540.0,113530.0,1.97739459]
[1757507725315,0.00042,113540.0,113530.0,2.06546119]
[1757507725917,0.00042,113540.0,113530.0,0.85155459]
[1757507726122,0.00042,113540.0,113530.0,1.97731459]
[1757507726722,0.25042,113540.0,113530.0,1.97707459]
[1757507728613,0.02852,113530.0,113520.0,0.3608]
[1757507728819,0.27852,113530.0,113520.0,0.49075459]
[1757507729123,0.02894,113540.0,113520.0,0.3608]
[1757507729316,0.02894,113540.0,113530.0,0.12995459]
[1757507729517,0.02894,113540.0,113530.0,1.12496]
[1757507729718,0.02852,113530.0,113520.0,1.25483459]
[1757507730018,0.63932,113530.0,113520.0,0.12995459]
[1757507730322,0.02852,113520.0,113510.0,1.4856]
[1757507730620,0.27852,113520.0,113510.0,0.3608]
[1757507730824,0.02852,113510.0,113500.0,0.14651688]
[1757507731122,0.27852,113520.0,113500.0,0.37846967]
[1757507731321,0.02894,113540.0,113510.0,1.61432721]
[1757507731516,0.02894,113540.0,113520.0,0.3608]
[1757507731517,0.02852,113530.0,113520.0,0.3608]
[1757507731721,0.02852,113530.0,113520.0,0.48964721]
[1757507731917,0.27852,113530.0,113520.0,0.3608]
[1757507732114,0.00042,113540.0,113520.0,0.48964721]
[1757507732422,0.38932,113530.0,113520.0,1.12448]
[1757507732625,0.38932,113530.0,113510.0,0.48964721]
[1757507732626,0.02852,113520.0,113500.0,0.37846967]
[1757507732822,0.38932,113510.0,113500.0,1.14206967]
[1757507733015,0.38932,113530.0,113500.0,1.14206967]
[1757507733219,0.38932,113530.0,113520.0,0.12884721]
[1757507733418,0.02894,113540.0,113520.0,1.61400721]
[1757507733619,0.38974,113540.0,113520.0,1.48516]
[1757507733822,0.02852,113530.0,113520.0,0.3608]
[1757507734015,0.38932,113530.0,113520.0,1.12428]
[1757507734221,0.02852,113520.0,113510.0,0.12884721]
[1757507734521,0.38932,113530.0,113510.0,1.61384721]
[1757507734522,0.02852,113530.0,113510.0,1.61384721]
[1757507734720,0.38974,113540.0,113520.0,0.3608]
[1757507734926,0.02852,113530.0,113520.0,1.61376721]
[1757507735323,0.27852,113530.0,113520.0,1.61376721]
[1757507736016,0.02894,113540.0,113520.0,1.97456721]
[1757507736220,0.02894,113540.0,113530.0,0.48964721]
[1757507736524,0.00042,113540.0,113530.0,0.48964721]
[1757507736926,0.00042,113540.0,113530.0,0.3608]
[1757507737126,0.00042,113540.0,113530.0,0.48964721]
[1757507737624,0.02894,113540.0,113530.0,0.3608]
[1757507737818,0.02852,113530.0,113520.0,1.48444]
[1757507738021,0.02852,113530.0,113520.0,1.12364]
[1757507738221,0.02852,113530.0,113520.0,1.61328721]
[1757507738629,0.02852,113530.0,113520.0,1.48444]
[1757507738927,0.02852,113530.0,113520.0,1.61324721]
[1757507739517,0.38974,113540.0,113520.0,1.61324721]
[1757507739729,0.38974,113540.0,113520.0,1.4844]
[1757507739918,0.38974,113540.0,113530.0,0.12884721]
[1757507740120,0.38974,113540.0,113520.0,0.3608]
[1757507740325,0.02852,113520.0,113510.0,0.3608]
[1757507740524,0.02852,113520.0,113510.0,1.20688]
[1757507740930,0.02852,113510.0,113500.0,0.14651688]
[1757507741229,0.02852,113510.0,113500.0,1.26959688]
[1757507741419,0.02852,113510.0,113500.0,0.50731688]
[1757507741624,0.02852,113510.0,113500.0,1.63031688]
[1757507742026,0.02852,113520.0,113500.0,1.63031688]
[1757507742227,0.02852,113520.0,113510.0,0.12884721]
[1757507742428,0.02852,113520.0,113500.0,1.50146967]
[1757507742634,0.02632,113510.0,113500.0,1.50126967]
[1757507742827,0.38712,113510.0,113500.0,1.14046967]
[1757507743135,0.63712,113510.0,113500.0,0.01766967]
[1757507743834,0.02632,113500.0,113490.0,0.01767306]
[1757507744037,0.38712,113500.0,113490.0,0.01767306]
[1757507744436,0.38712,113500.0,113490.0,0.14652027]
[1757507744635,0.38712,113500.0,113490.0,0.01767306]
[1757507745335,0.76596721,113500.0,113490.0,0.01767306]
[1757507745635,0.63712,113500.0,113490.0,0.01767306]
[1757507745833,0.38712,113500.0,113490.0,0.14652027]
[1757507746029,0.76596721,113500.0,113470.0,0.3608]
[1757507746231,0.02632,113480.0,113460.0,0.50771131]
[1757507746430,0.02632,113470.0,113460.0,0.3788641]
[1757507746631,0.02632,113470.0,113460.0,0.0180641]
[1757507746836,0.02632,113470.0,113460.0,0.14691131]
[1757507747033,0.02632,113480.0,113460.0,0.75771131]
[1757507747233,0.02632,113480.0,113470.0,0.48964721]
[1757507747832,0.02632,113480.0,113470.0,0.3608]
[1757507748142,0.02632,113480.0,113470.0,0.48964721]
[1757507748933,0.02632,113480.0,113470.0,0.12884721]
[1757507749134,0.02632,113480.0,113470.0,0.48964721]
[1757507750138,0.02632,113470.0,113460.0,1.62939131]
[1757507750536,0.02632,113470.0,113460.0,0.50771131]
[1757507751436,0.3608,113480.0,113460.0,0.82911601]
[1757507751632,0.02632,113520.0,113460.0,0.82911601]
[1757507751633,0.02632,113520.0,113480.0,0.0881057]
[1757507751826,0.02632,113530.0,113510.0,0.48964721]
[1757507752033,0.02632,113530.0,113520.0,0.12884721]
[1757507752326,0.02632,113530.0,113510.0,1.61092721]
[1757507752534,0.02632,113530.0,113520.0,0.3608]
[1757507752735,0.02632,113530.0,113520.0,0.48964721]
[1757507753735,0.02632,113530.0,113520.0,1.61060721]
[1757507754041,0.02674,113540.0,113520.0,0.48964721]
[1757507754235,0.02632,113520.0,113510.0,1.48164]
[1757507754436,0.02632,113520.0,113510.0,0.3608]
[1757507754739,0.02632,113520.0,113500.0,1.61040721]
[1757507755037,0.02632,113510.0,113500.0,1.61036721]
[1757507755238,0.02632,113520.0,113500.0,1.61036721]
[1757507755440,0.02632,113520.0,113510.0,0.12884721]
[1757507755837,0.02632,113520.0,113510.0,0.48964721]
[1757507756138,0.02632,113520.0,113510.0,0.12884721]
[1757507756442,0.02632,113510.0,113500.0,1.61036721]
[1757507756940,0.02632,113520.0,113500.0,1.60988721]
[1757507757143,0.02632,113520.0,113510.0,0.48964721]
[1757507757833,0.02632,113520.0,113500.0,0.3608]
[1757507758037,0.02632,113520.0,113490.0,0.3608]
[1757507758038,0.15516721,113510.0,113490.0,0.3608]
[1757507758240,0.02632,113500.0,113480.0,0.48964721]
[1757507758631,0.02632,113500.0,113490.0,0.12884721]
[1757507758828,0.02632,113490.0,113480.0,0.48964721]
[1757507759034,0.02632,113480.0,113470.0,1.60944721]
[1757507759437,0.02632,113490.0,113470.0,1.60944721]
[1757507759634,0.02632,113490.0,113480.0,0.48964721]
[1757507760044,0.02632,113490.0,113480.0,0.12884721]
[1757507760238,0.02632,113480.0,113470.0,0.3608]
[1757507760640,0.02632,113470.0,113460.0,0.3788641]
[1757507760838,0.38712,113490.0,113460.0,2.09411932]
[1757507761043,0.02632,113510.0,113480.0,0.48964721]
[1757507761240,0.02632,113510.0,113500.0,0.12884721]
[1757507761431,0.02632,113530.0,113500.0,0.73964721]
[1757507761631,0.02632,113530.0,113520.0,0.12884721]
[1757507762139,0.02632,113530.0,113510.0,1.48008]
[1757507762336,0.02632,113530.0,113520.0,0.12884721]
[1757507762738,0.02674,113540.0,113520.0,0.73964721]
[1757507763046,0.02674,113540.0,113520.0,1.60864721]
[1757507763238,0.02674,113540.0,113530.0,0.12884721]
[1757507763542,0.02674,113540.0,113520.0,1.4798]
[1757507763845,0.00042,113540.0,113530.0,0.12884721]
[1757507764049,0.02674,113540.0,113520.0,1.4798]
[1757507764344,0.02674,113540.0,113530.0,0.12884721]
[1757507764738,0.02674,113540.0,113530.0,1.24736721]
[1757507765139,0.00042,113540.0,113530.0,1.60816721]
[1757507765839,0.00042,113540.0,113530.0,1.47932]
[1757507766045,0.00042,113540.0,113530.0,1.60816721]
[1757507766248,0.00042,113540.0,113530.0,1.47932]
[1757507766741,0.00042,113540.0,113530.0,1.60816721]
[1757507767147,0.00042,113540.0,113530.0,1.69559381]
[1757507767547,0.00042,113540.0,113530.0,1.94559381]
[1757507768145,0.00042,113540.0,113530.0,1.94535381]
[1757507768342,0.00042,113540.0,113530.0,0.82771381]
[1757507768546,0.00042,113540.0,113530.0,1.94523381]
[1757507768740,0.00042,113540.0,113530.0,1.94515381]
[1757507771240,0.00042,113540.0,113530.0,0.82771381]
[1757507771442,0.00042,113540.0,113530.0,1.94451381]
[1757507771743,0.00042,113540.0,113530.0,0.82771381]
[1757507771939,0.00042,113540.0,113530.0,0.48964721]
[1757507772136,0.00042,113540.0,113530.0,1.60620721]
[1757507772340,0.00042,113540.0,113530.0,1.60604721]
[1757507772539,0.00042,113540.0,113530.0,0.82771411]
[1757507772740,0.00042,113540.0,113530.0,1.94407411]
[1757507772938,0.00042,113540.0,113530.0,0.48964721]
[1757507773342,0.00042,113540.0,113530.0,1.60584721]
[1757507773542,0.00042,113540.0,113530.0,0.48964721]
[1757507773843,0.00042,113540.0,113530.0,1.60560721]
[1757507774044,0.00042,113540.0,113530.0,1.69367401]
[1757507774345,0.00042,113540.0,113530.0,1.69351401]
[1757507776445,0.00042,113540.0,113530.0,1.5646668]
[1757507776652,0.00042,113540.0,113530.0,1.69351401]
[1757507777146,0.00042,113540.0,113530.0,0.57771401]
[1757507777347,0.00042,113540.0,113530.0,1.69259401]
[1757507777549,0.00042,113540.0,113530.0,0.57771401]
[1757507777746,0.00042,113540.0,113530.0,1.94259401]
[1757507778261,0.3606401,113580.0,113560.0,0.01]
[1757507778558,0.02729551,113590.0,113570.0,0.93847931]
[1757507778745,0.02729551,113590.0,113580.0,0.48964721]
[1757507778939,0.02729551,113590.0,113580.0,0.3608]
[1757507779143,0.27729551,113590.0,113580.0,0.3608]
[1757507779357,0.27729551,113590.0,113570.0,1.60396721]
[1757507779358,0.02724,113580.0,113570.0,0.3608]
[1757507779547,0.27724,113580.0,113570.0,0.3608]
[1757507779844,0.27724,113580.0,113570.0,0.3598]
[1757507780047,0.02724,113570.0,113560.0,0.3608]
[1757507780352,0.02724,113560.0,113550.0,1.60396721]
[1757507780646,0.02724,113560.0,113550.0,0.3608]
[1757507780854,0.02724,113550.0,113540.0,0.48964721]
[1757507782346,0.02724,113550.0,113540.0,0.3608]
[1757507782347,0.27724,113550.0,113540.0,0.3608]
[1757507782646,0.02724,113540.0,113530.0,1.49214804]
[1757507782845,0.02724,113540.0,113530.0,1.62099525]
[1757507783647,0.02724,113540.0,113530.0,1.49214804]
[1757507783851,0.02724,113540.0,113530.0,1.62099525]
[1757507784363,0.02724,113540.0,113530.0,0.50779525]
[1757507784947,0.02724,113540.0,113530.0,0.37894804]
[1757507785149,0.02724,113540.0,113530.0,0.50779525]
[1757507786159,0.02724,113540.0,113530.0,0.37894804]
[1757507786456,0.02724,113540.0,113530.0,0.50779525]
[1757507786847,0.02724,113540.0,113530.0,0.37894804]
[1757507787353,0.02724,113550.0,113530.0,0.50779525]
[1757507787654,0.02724,113560.0,113540.0,1.60128721]
[1757507787848,0.02724,113560.0,113550.0,0.12884721]
[1757507789255,0.02724,113560.0,113550.0,0.3608]
[1757507789456,0.02724,113560.0,113550.0,0.48964721]
[1757507789850,0.02724,113570.0,113550.0,0.48964721]
[1757507790049,0.02724,113570.0,113560.0,0.48964721]
[1757507790847,0.02724,113570.0,113560.0,0.3608]
[1757507791055,0.02724,113570.0,113560.0,0.48964721]
[1757507791865,0.07187,113570.0,113560.0,0.3608]
[1757507792156,0.07187,113570.0,113560.0,0.48964721]
[1757507792357,0.02724,113570.0,113560.0,0.49037905]
[1757507792751,0.02724,113570.0,113560.0,0.3608]
[1757507792952,0.02724,113570.0,113560.0,0.49037905]
[1757507793154,0.02724,113570.0,113560.0,0.3608]
[1757507793458,0.02724,113570.0,113560.0,0.49037905]
[1757507795458,0.02724,113580.0,113560.0,0.49037905]
[1757507795656,0.02724,113580.0,113570.0,0.12957905]
[1757507795855,0.07187,113580.0,113570.0,0.12957905]
[1757507796849,0.07187,113580.0,113560.0,0.3608]
[1757507797052,0.07187,113570.0,113560.0,0.3608]
[1757507797361,0.07187,113570.0,113560.0,0.49037905]
[1757507797560,0.07187,113570.0,113560.0,0.3608]
[1757507797861,0.07187,113570.0,113560.0,0.49037905]
[1757507798455,0.07187,113570.0,113560.0,0.3608]
[1757507798664,0.07187,113570.0,113560.0,0.49037905]
[1757507801060,0.07187,113570.0,113560.0,0.3608]
[1757507801250,0.07187,113570.0,113560.0,0.12957905]
[1757507801656,0.07187,113570.0,113550.0,0.3608]
[1757507801657,0.06806,113560.0,113550.0,0.3608]
[1757507801856,0.02556,113540.0,113530.0,0.37894804]
[1757507802265,0.02556,113550.0,113530.0,0.37894804]
[1757507802463,0.02556,113550.0,113540.0,0.3608]
[1757507802851,0.02556,113550.0,113540.0,0.49037905]
[1757507805567,0.06806,113550.0,113540.0,0.49037905]
[1757507806867,0.06806,113550.0,113530.0,0.50852709]
[1757507807060,0.06806,113540.0,113530.0,0.01814804]
[1757507807259,0.42886,113540.0,113530.0,0.01814804]
[1757507807859,0.80843905,113540.0,113530.0,0.01814804]
[1757507808058,0.67886,113540.0,113530.0,0.01814804]
[1757507808364,0.06806,113530.0,113520.0,0.1917156]
[1757507808559,0.06806,113530.0,113520.0,0.2591581]
[1757507808955,0.06806,113530.0,113520.0,0.06213655]
[1757507809163,0.06806,113520.0,113510.0,0.06213655]
[1757507809465,0.42886,113520.0,113510.0,0.06213655]
[1757507809766,0.06806,113510.0,113500.0,0.07994615]
[1757507809966,0.42886,113510.0,113500.0,0.06213655]
[1757507810162,0.06806,113500.0,113490.0,0.12957905]
[1757507810470,0.06806,113490.0,113480.0,0.36249]
[1757507810764,0.06806,113490.0,113480.0,0.43991253]
[1757507810968,0.42886,113490.0,113480.0,0.07911253]
[1757507811169,0.06806,113490.0,113480.0,0.43991253]
[1757507811358,0.02556,113490.0,113480.0,0.36249]
[1757507811562,0.02556,113490.0,113480.0,0.6216481]
[1757507811762,0.02556,113500.0,113480.0,0.8716481]
[1757507811967,0.02556,113500.0,113490.0,0.6199581]
[1757507812163,0.02556,113500.0,113490.0,0.69738063]
[1757507812361,0.06806,113500.0,113490.0,0.69738063]
[1757507812965,0.02556,113500.0,113490.0,0.69738063]
[1757507813870,0.02556,113500.0,113490.0,2.05170063]
[1757507814171,0.02556,113510.0,113490.0,2.05170063]
[1757507814392,0.06806,113510.0,113500.0,0.42269022]
[1757507814560,0.06806,113500.0,113490.0,0.07742253]
[1757507814766,0.42886,113500.0,113490.0,0.06190347]
[1757507815467,0.80843905,113500.0,113490.0,0.06190347]
[1757507815658,0.67886,113500.0,113490.0,0.19148252]
[1757507816463,0.02556,113480.0,113460.0,0.43816155]
[1757507816668,0.02556,113460.0,113450.0,0.28219111]
[1757507816863,0.02556,113460.0,113450.0,0.14748624]
[1757507817062,0.38636,113470.0,113450.0,0.14748624]
[1757507817668,0.38636,113470.0,113460.0,0.12957905]
[1757507817870,0.38636,113470.0,113450.0,0.14748624]
[1757507818964,0.38636,113470.0,113460.0,0.12957905]
[1757507819472,0.38636,113470.0,113450.0,0.50828624]
[1757507819669,0.3608,113470.0,113460.0,0.12957905]
[1757507819859,0.3608,113470.0,113450.0,0.40526719]
[1757507820065,0.3608,113480.0,113460.0,0.15613905]
[1757507820569,0.3608,113480.0,113470.0,0.12957905]
[1757507820759,0.51593905,113490.0,113470.0,0.12957905]
[1757507820969,0.51593905,113490.0,113460.0,0.38736]
[1757507821168,0.51593905,113490.0,113470.0,0.12957905]
[1757507821466,0.38636,113480.0,113450.0,1.50786719]
[1757507821672,0.38636,113480.0,113460.0,1.23209905]
[1757507821863,0.38636,113480.0,113460.0,1.10252]
[1757507822066,0.38636,113480.0,113460.0,1.23209905]
[1757507822366,0.02556,113470.0,113450.0,0.37870719]
[1757507822577,0.38636,113460.0,113440.0,0.15613905]
[1757507822769,0.38636,113470.0,113450.0,0.12957905]
[1757507823569,0.51593905,113470.0,113450.0,0.12957905]
[1757507823768,0.38636,113470.0,113460.0,0.12957905]
[1757507825072,0.38636,113470.0,113450.0,0.15613905]
[1757507825463,0.3608,113470.0,113450.0,0.23339247]
[1757507825669,0.3608,113470.0,113460.0,0.12957905]
[1757507826067,0.4033,113470.0,113460.0,0.04179]
[1757507826466,0.4033,113470.0,113460.0,0.17136905]
[1757507826761,0.4033,113470.0,113460.0,0.04179]
[1757507826966,0.4033,113470.0,113460.0,0.17136905]
[1757507827166,0.42886,113470.0,113450.0,0.20683247]
[1757507827567,0.55843905,113470.0,113450.0,0.20683247]
[1757507827862,0.55843905,113470.0,113450.0,0.07725342]
[1757507828066,0.42886,113470.0,113460.0,0.04179]
[1757507828874,0.55843905,113470.0,113460.0,0.04179]
[1757507829074,0.42886,113470.0,113440.0,0.46461342]
[1757507829267,0.55843905,113470.0,113440.0,0.59419247]
[1757507829572,0.4033,113470.0,113460.0,0.17136905]
[1757507829773,0.3608,113480.0,113460.0,0.42915]
[1757507829972,0.38636,113480.0,113460.0,0.55872905]
[1757507830170,0.02556,113500.0,113490.0,0.04179]
[1757507830370,0.0425,113500.0,113490.0,0.19792905]
[1757507830571,0.38636,113510.0,113490.0,0.19792905]
[1757507830977,0.51593905,113510.0,113490.0,0.19792905]
[1757507831174,0.4284,113500.0,113490.0,0.04179]
[1757507831370,0.55797905,113500.0,113480.0,0.15613905]
[1757507831570,0.4284,113500.0,113480.0,0.15613905]
[1757507832172,0.51547905,113490.0,113470.0,0.02656]
[1757507832377,0.04512,113480.0,113470.0,1.487]
[1757507833276,0.04512,113480.0,113470.0,0.3608]
[1757507833478,0.07022,113480.0,113470.0,0.3608]
[1757507834077,0.44979905,113480.0,113470.0,0.3608]
[1757507834277,0.81059905,113480.0,113460.0,1.17601342]
[1757507834478,0.56059905,113480.0,113460.0,1.17601342]
[1757507834678,0.43102,113480.0,113460.0,1.17601342]
[1757507834881,0.56059905,113470.0,113460.0,0.07725342]
[1757507835080,0.07022,113460.0,113450.0,0.07725342]
[1757507835379,0.56059905,113460.0,113450.0,0.07725342]
[1757507835770,0.76547905,113460.0,113450.0,0.07725342]
[1757507835974,0.6359,113460.0,113450.0,0.07725342]
[1757507836577,0.6359,113460.0,113450.0,0.20683247]
[1757507836984,0.2751,113460.0,113450.0,0.20683247]
[1757507837188,0.2751,113460.0,113450.0,0.07725342]
[1757507837484,0.2751,113460.0,113450.0,0.20683247]
[1757507837784,0.2751,113460.0,113450.0,0.07725342]
[1757507837985,0.6359,113460.0,113450.0,0.20683247]